bitfinex/quotes_BTCUSD_20250922
["timestamp","ask_amount","ask_price","bid_price","bid_amount"]
[1758574751629,0.20915686,113030.0,113020.0,0.44932407]
[1758574751774,0.21229686,113030.0,113020.0,0.77230165]
[1758574753884,0.18512686,113030.0,113020.0,0.79895165]
[1758574754091,0.18512686,113030.0,112980.0,0.8487502]
[1758574754092,1.108078,113030.0,112980.0,0.34]
[1758574754303,0.17703815,112970.0,112960.0,0.28077]
[1758574754522,0.17703435,112980.0,112960.0,0.92886516]
[1758574754728,0.18323842,112980.0,112970.0,0.34962758]
[1758574755138,0.18323842,112980.0,112970.0,0.35176758]
[1758574755561,0.18370548,112980.0,112970.0,0.35176758]
[1758574755985,0.18370548,112980.0,112970.0,0.35376758]
[1758574756196,0.17750141,112980.0,112970.0,0.02865]
[1758574756831,0.21195667,112980.0,112970.0,0.38508]
[1758574757041,0.21195667,112980.0,112970.0,0.38504]
[1758574757471,0.21195667,112980.0,112970.0,0.38304]
[1758574757664,0.21195667,112980.0,112970.0,0.37804]
[1758574757866,0.2334672,112980.0,112970.0,0.37804]
[1758574758078,0.21695667,112980.0,112970.0,0.37804]
[1758574758727,0.23345642,112980.0,112970.0,0.37804]
[1758574758930,0.17703815,112970.0,112960.0,0.0004]
[1758574759136,0.17703815,112970.0,112960.0,0.37844]
[1758574759352,0.20529815,112970.0,112960.0,0.37844]
[1758574759977,0.17899815,112970.0,112960.0,0.37844]
[1758574760376,0.17899815,112970.0,112960.0,0.38153]
[1758574760588,0.17899815,112970.0,112960.0,0.37944]
[1758574760802,0.20529815,112970.0,112960.0,0.37944]
[1758574761831,0.20529815,112970.0,112960.0,0.0014]
[1758574762040,0.20529815,112970.0,112960.0,0.37952]
[1758574763768,0.79539645,112970.0,112960.0,0.0014]
[1758574763982,0.21147039,112970.0,112960.0,0.28384]
[1758574764767,0.21147039,112970.0,112960.0,0.28284]
[1758574764929,0.22047039,112970.0,112960.0,0.28284]
[1758574767609,0.23692706,112970.0,112960.0,0.28284]
[1758574769715,0.23692706,112970.0,112960.0,0.0004]
[1758574769915,0.23692706,112970.0,112960.0,0.2828]
[1758574770919,0.23692706,112970.0,112960.0,0.0004]
[1758574771128,0.23692706,112970.0,112960.0,0.2828]
[1758574771555,0.82702536,112970.0,112960.0,0.2828]
[1758574773468,0.23692706,112970.0,112960.0,0.2828]
[1758574776718,0.66838317,112970.0,112960.0,0.2828]
[1758574778285,0.67662996,112970.0,112960.0,0.2828]
[1758574778895,0.67662996,112970.0,112960.0,0.0004]
[1758574779133,0.24517385,112970.0,112960.0,0.28276]
[1758574779357,0.67662996,112970.0,112960.0,0.28276]
[1758574780101,0.24517385,112970.0,112960.0,0.28276]
[1758574780324,0.21691385,112970.0,112960.0,0.30955]
[1758574780570,0.21691385,112970.0,112960.0,0.74314611]
[1758574780992,0.21691385,112970.0,112960.0,0.31169]
[1758574781194,0.21691385,112970.0,112960.0,0.74314611]
[1758574781392,0.21691385,112970.0,112960.0,0.31169]
[1758574781863,0.21691385,112970.0,112960.0,0.39695967]
[1758574782519,0.21694225,112970.0,112960.0,0.39695967]
[1758574783154,0.21694225,112970.0,112960.0,0.46473693]
[1758574784323,0.21694225,112970.0,112960.0,0.64179075]
[1758574784527,0.21694225,112970.0,112960.0,0.46473693]
[1758574784923,0.21698644,112970.0,112960.0,0.46473693]
[1758574788472,0.03994829,112970.0,112960.0,1.07324686]
[1758574790218,0.21698644,112970.0,112960.0,1.07324686]
[1758574790423,0.03994829,112970.0,112960.0,1.07324686]
[1758574792085,0.03994829,112970.0,112960.0,0.64179075]
[1758574792289,0.03994829,112970.0,112960.0,1.07324686]
[1758574794583,0.02349162,112970.0,112960.0,1.07324686]
[1758574795621,0.66185588,112970.0,112960.0,0.2826]
[1758574795797,0.66185588,112970.0,112960.0,0.0004]
[1758574795798,0.67831255,112970.0,112960.0,0.0004]
[1758574795997,0.67831255,112970.0,112960.0,0.2826]
[1758574796201,0.67831255,112970.0,112960.0,0.0004]
[1758574796404,0.67831255,112970.0,112960.0,0.2826]
[1758574796606,0.67831255,112970.0,112960.0,0.0004]
[1758574796804,0.67831255,112970.0,112960.0,0.2826]
[1758574798269,0.24685644,112970.0,112960.0,0.2826]
[1758574798471,0.03994829,112970.0,112960.0,1.0043196]
[1758574798707,0.02349162,112970.0,112960.0,1.1000396]
[1758574799065,0.02351125,112970.0,112960.0,1.1000396]
[1758574799421,0.01522027,112970.0,112960.0,1.1000396]
[1758574799797,0.19225842,112970.0,112960.0,1.1000396]
[1758574799985,0.2005494,112970.0,112960.0,0.7199796]
[1758574800201,0.2025294,112970.0,112960.0,0.0004]
[1758574800420,0.2292094,112970.0,112960.0,0.28256]
[1758574800626,0.2292094,112970.0,112960.0,0.0004]
[1758574800926,0.2292094,112970.0,112960.0,0.28256]
[1758574801478,0.2025294,112970.0,112960.0,0.46169382]
[1758574801694,0.2005494,112970.0,112960.0,0.48541382]
[1758574802100,0.2005494,112970.0,112960.0,0.40408]
[1758574802425,0.2005494,112970.0,112960.0,0.58327382]
[1758574802647,0.01522027,112970.0,112960.0,1.01472993]
[1758574802867,0.19225842,112970.0,112960.0,1.01472993]
[1758574803005,0.19225842,112970.0,112960.0,0.63684993]
[1758574803221,0.19225842,112970.0,112960.0,1.01472993]
[1758574804325,0.01522027,112970.0,112960.0,1.01472993]
[1758574804860,0.19225842,112970.0,112960.0,1.01472993]
[1758574805742,0.19225842,112970.0,112960.0,1.07996887]
[1758574806323,0.19225842,112970.0,112960.0,0.64851276]
[1758574806529,0.19225842,112970.0,112960.0,1.07996887]
[1758574806713,0.01522027,112970.0,112960.0,1.16523854]
[1758574806908,0.009,112970.0,112960.0,1.16523854]
[1758574807595,0.009,112970.0,112960.0,0.78735854]
[1758574807799,0.009,112970.0,112960.0,1.16511854]
[1758574807974,0.006,112970.0,112960.0,1.06943854]
[1758574808217,0.006,112970.0,112960.0,1.16511854]
[1758574808423,0.00668733,112980.0,112970.0,0.17703815]
[1758574808658,0.00046706,112980.0,112970.0,0.20283815]
[1758574808863,0.00046706,112980.0,112970.0,0.63429426]
[1758574809250,0.17946954,112980.0,112970.0,0.48491815]
[1758574809461,0.17946954,112980.0,112970.0,0.20283815]
[1758574809679,0.17946954,112980.0,112970.0,0.48491815]
[1758574810318,0.00444706,112980.0,112970.0,0.48491815]
[1758574810518,0.00444706,112980.0,112970.0,0.91637426]
[1758574810725,0.18146954,112980.0,112970.0,0.63429426]
[1758574810954,0.18146954,112980.0,112970.0,0.48487815]
[1758574811364,0.18146954,112980.0,112970.0,0.91633426]
[1758574811503,0.18246954,112980.0,112970.0,0.91633426]
[1758574813945,0.18246954,112980.0,112970.0,0.63429426]
[1758574814111,0.18246954,112980.0,112970.0,0.91629426]
[1758574815558,0.18549954,112980.0,112970.0,0.45725611]
[1758574815911,0.17703815,112970.0,112960.0,0.15090861]
[1758574816030,0.20620815,112970.0,112960.0,0.52858861]
[1758574816236,0.20620815,112970.0,112960.0,0.43290861]
[1758574816440,0.20620815,112970.0,112960.0,0.2824]
[1758574817339,0.20620815,112970.0,112960.0,0.0014]
[1758574817543,0.20620815,112970.0,112960.0,0.28336]
[1758574817794,0.20620815,112970.0,112960.0,0.0014]
[1758574818230,0.9838842,112970.0,112960.0,0.0014]
[1758574818456,1.06915387,112970.0,112960.0,0.0014]
[1758574818663,1.35111387,112970.0,112960.0,0.0014]
[1758574818843,1.3759959,112970.0,112960.0,0.0014]
[1758574819693,1.3759959,112970.0,112960.0,0.0004]
[1758574820001,1.3789959,112970.0,112960.0,0.0004]
[1758574820199,1.35211387,112970.0,112960.0,0.0004]
[1758574820569,1.85914132,112970.0,112960.0,1e-08]
[1758574820787,1.93911598,112970.0,112960.0,1e-08]
[1758574820990,1.91642711,112970.0,112960.0,1e-08]
[1758574821423,1.92042711,112970.0,112960.0,1e-08]
[1758574821603,1.93973474,112970.0,112960.0,1e-08]
[1758574822019,1.93573474,112970.0,112960.0,1e-08]
[1758574822535,1.94173474,112970.0,112960.0,1e-08]
[1758574822739,2.05027022,112970.0,112960.0,1e-08]
[1758574822962,2.04427022,112970.0,112960.0,1e-08]
[1758574823166,1.76231022,112970.0,112960.0,1e-08]
[1758574823362,2.41815022,112970.0,112960.0,1e-08]
[1758574823567,2.58915653,112970.0,112960.0,1e-08]
[1758574823767,1.82859653,112970.0,112960.0,1e-08]
[1758574824309,2.59419653,112970.0,112960.0,1e-08]
[1758574824515,1.62274883,112970.0,112960.0,1e-08]
[1758574824935,1.52702883,112970.0,112960.0,1e-08]
[1758574825114,0.8428412,112970.0,112960.0,1e-08]
[1758574825353,1.6034412,112970.0,112960.0,1e-08]
[1758574825764,1.64176424,112970.0,112960.0,1e-08]
[1758574826220,0.8428412,112970.0,112960.0,1e-08]
[1758574826432,1.6034412,112970.0,112960.0,1e-08]
[1758574826849,2.0522412,112970.0,112960.0,1e-08]
[1758574828531,2.07886525,112970.0,112960.0,1e-08]
[1758574828952,2.07877161,112970.0,112960.0,1e-08]
[1758574830919,2.07876953,112970.0,112960.0,1e-08]
[1758574831263,2.06226215,112970.0,112960.0,1e-08]
[1758574831467,2.0787612,112970.0,112960.0,1e-08]
[1758574832302,1.6299612,112970.0,112960.0,1e-08]
[1758574832667,1.71523087,112970.0,112960.0,1e-08]
[1758574833052,1.71519335,112970.0,112960.0,1e-08]
[1758574833226,1.62992368,112970.0,112960.0,1e-08]
[1758574833966,0.95892737,112970.0,112960.0,1e-08]
[1758574834167,1.08352737,112970.0,112960.0,0.00215001]
[1758574834397,1.68115917,112970.0,112960.0,0.00215001]
[1758574834577,1.68423917,112970.0,112960.0,0.00215001]
[1758574835010,1.73423917,112970.0,112960.0,0.00215001]
[1758574836209,1.7259909,112970.0,112960.0,0.00215001]
[1758574836426,1.73423959,112970.0,112960.0,0.00215001]
[1758574836627,1.73423959,112970.0,112960.0,1e-08]
[1758574837177,1.73423793,112970.0,112960.0,0.02000001]
[1758574839114,1.73424032,112970.0,112960.0,0.02000001]
[1758574839891,1.77992032,112970.0,112960.0,0.02215001]
[1758574840921,0.94052442,112970.0,112960.0,0.02215001]
[1758574841136,1.28052442,112970.0,112960.0,0.04535001]
[1758574841353,0.99868442,112970.0,112960.0,0.04535001]
[1758574841557,1.28052442,112970.0,112960.0,0.04535001]
[1758574842588,1.28266442,112970.0,112960.0,0.04535001]
[1758574843856,0.67486852,112970.0,112960.0,0.02215001]
[1758574844032,1.28052442,112970.0,112960.0,0.04749001]
[1758574846146,0.95670852,112970.0,112960.0,0.04749001]
[1758574846366,1.28052442,112970.0,112960.0,0.04535001]
[1758574847424,1.28574442,112970.0,112960.0,0.02000001]
[1758574847691,1.63416032,112970.0,112960.0,0.02000001]
[1758574849218,1.63419786,112970.0,112960.0,0.02000001]
[1758574851964,2.05801376,112970.0,112960.0,1e-08]
[1758574852659,1.45235896,112970.0,112960.0,1e-08]
[1758574852878,1.82979896,112970.0,112960.0,1e-08]
[1758574853097,1.45235896,112970.0,112960.0,1e-08]
[1758574853317,1.82979896,112970.0,112960.0,1e-08]
[1758574853537,2.15361486,112970.0,112960.0,1e-08]
[1758574853780,1.77617486,112970.0,112960.0,1e-08]
[1758574854013,1.82979896,112970.0,112960.0,1e-08]
[1758574854240,1.45235896,112970.0,112960.0,1e-08]
[1758574854673,1.82979896,112970.0,112960.0,1e-08]
[1758574856275,1.92308896,112970.0,112960.0,1e-08]
[1758574856470,1.82979896,112970.0,112960.0,1e-08]
[1758574857357,1.82975896,112970.0,112960.0,1e-08]
[1758574857582,1.82987308,112970.0,112960.0,1e-08]
[1758574858583,1.45247308,112970.0,112960.0,1e-08]
[1758574858822,1.82987308,112970.0,112960.0,1e-08]
[1758574859039,1.18224128,112970.0,112960.0,1e-08]
[1758574859252,1.82987308,112970.0,112960.0,1e-08]
[1758574859479,1.45247308,112970.0,112960.0,1e-08]
[1758574859915,1.82987308,112970.0,112960.0,1e-08]
[1758574861218,2.23895865,112970.0,112960.0,1e-08]
[1758574861468,2.14319865,112970.0,112960.0,1e-08]
[1758574861679,1.86155865,112970.0,112960.0,1e-08]
[1758574862123,2.23891865,112970.0,112960.0,1e-08]
[1758574862554,2.30629125,112970.0,112960.0,1e-08]
[1758574863412,3.14389425,112970.0,112960.0,1e-08]
[1758574863647,0.17708517,112940.0,112930.0,0.03037008]
[1758574863860,0.94107605,112940.0,112930.0,0.03037008]
[1758574864070,1.22271605,112940.0,112930.0,0.03250008]
[1758574864289,0.96770195,112940.0,112930.0,0.03464008]
[1758574864513,1.24934458,112940.0,112930.0,0.03464008]
[1758574864720,1.24981164,112940.0,112930.0,0.03464008]
[1758574864949,1.25081164,112940.0,112930.0,0.03464008]
[1758574865204,0.96917164,112940.0,112930.0,0.03464008]
[1758574865410,1.25081164,112940.0,112930.0,0.03464008]
[1758574866643,0.96917164,112940.0,112930.0,0.03464008]
[1758574866869,1.25081164,112940.0,112930.0,0.03464008]
[1758574868398,1.25081164,112940.0,112930.0,0.03250008]
[1758574869266,1.24252113,112940.0,112930.0,0.03250008]
[1758574870736,1.2425167,112940.0,112930.0,0.03250008]
[1758574871342,1.22593568,112940.0,112930.0,0.03250008]
[1758574871887,1.22797568,112940.0,112930.0,0.03250008]
[1758574872092,0.58034388,112940.0,112930.0,0.03250008]
[1758574872292,1.62789158,112940.0,112930.0,1e-08]
[1758574872505,1.67429443,112940.0,112930.0,1e-08]
[1758574872925,1.67429578,112940.0,112930.0,1e-08]
[1758574873241,3.12101315,112940.0,112930.0,1e-08]
[1758574873604,2.14956545,112940.0,112930.0,1e-08]
[1758574873810,3.09947463,112940.0,112930.0,1e-08]
[1758574874838,2.13102693,112940.0,112930.0,1e-08]
[1758574874995,3.10447463,112940.0,112930.0,1e-08]
[1758574875182,3.09825824,112940.0,112930.0,1e-08]
[1758574875387,3.0982531,112940.0,112930.0,1e-08]
[1758574875758,3.08996478,112940.0,112930.0,1e-08]
[1758574876191,3.07339287,112940.0,112930.0,1e-08]
[1758574877044,3.08996703,112940.0,112930.0,1e-08]
[1758574877255,3.1044722,112940.0,112930.0,1e-08]
[1758574877989,3.12600906,112940.0,112930.0,1e-08]
[1758574879124,3.10447054,112940.0,112930.0,1e-08]
[1758574879407,2.13302284,112940.0,112930.0,1e-08]
[1758574879610,2.13302284,112940.0,112930.0,4.001e-05]
[1758574879820,2.13294284,112940.0,112930.0,4.001e-05]
[1758574880016,2.22870284,112940.0,112930.0,4.001e-05]
[1758574880893,2.29460463,112940.0,112930.0,4.001e-05]
[1758574881322,3.26605233,112940.0,112930.0,4.001e-05]
[1758574881762,2.29460463,112940.0,112930.0,4.001e-05]
[1758574882181,2.19880463,112940.0,112930.0,4.001e-05]
[1758574882422,2.29456463,112940.0,112930.0,4.001e-05]
[1758574882879,2.294549,112940.0,112930.0,4.001e-05]
[1758574883312,3.2659967,112940.0,112930.0,4.001e-05]
[1758574883526,3.28753522,112940.0,112930.0,4.001e-05]
[1758574883930,5.24759222,112940.0,112930.0,4.001e-05]
[1758574884346,5.24559222,112940.0,112930.0,4.001e-05]
[1758574884575,4.86831222,112940.0,112930.0,4.001e-05]
[1758574884788,4.16671542,112940.0,112930.0,4.001e-05]
[1758574884992,4.17167542,112940.0,112930.0,4.001e-05]
[1758574885820,2.30072463,112940.0,112930.0,4.001e-05]
[1758574886023,2.49600323,112940.0,112930.0,4.001e-05]
[1758574886451,1.38885093,112940.0,112930.0,4.001e-05]
[1758574886674,1.88713793,112940.0,112930.0,4.001e-05]
[1758574886877,0.56711654,112920.0,112900.0,0.00258]
[1758574887088,0.97589119,112910.0,112900.0,0.00258]
[1758574887286,0.9821065,112910.0,112900.0,0.00258]
[1758574887486,1.00873947,112910.0,112900.0,0.00473]
[1758574887897,1.00873947,112910.0,112900.0,0.00259]
[1758574888311,1.02530015,112910.0,112900.0,0.00659]
[1758574888538,1.02530015,112910.0,112900.0,0.00259]
[1758574888755,1.02530015,112910.0,112900.0,0.00959]
[1758574888960,1.02530015,112910.0,112900.0,0.01159]
[1758574889128,1.02530015,112910.0,112900.0,0.02547]
[1758574889727,1.02526015,112910.0,112900.0,0.02547]
[1758574889928,0.74382015,112910.0,112900.0,0.02547]
[1758574890388,0.74382015,112910.0,112900.0,0.02761]
[1758574890389,1.03416416,112910.0,112900.0,0.02761]
[1758574890777,1.03416416,112910.0,112900.0,0.01159]
[1758574890983,1.03615416,112910.0,112900.0,0.01159]
[1758574891340,1.03416416,112910.0,112900.0,0.01159]
[1758574892884,0.75272416,112910.0,112900.0,0.01159]
[1758574893078,1.03416416,112910.0,112900.0,0.01159]
[1758574893918,0.32071486,112910.0,112900.0,0.02547]
[1758574894117,0.32071486,112910.0,112900.0,0.02761]
[1758574894324,0.60215486,112910.0,112900.0,0.02761]
[1758574894701,0.32071486,112910.0,112900.0,0.02761]
[1758574894896,0.60215486,112910.0,112900.0,0.02761]
[1758574895102,0.32071486,112910.0,112900.0,0.02761]
[1758574895288,0.60211486,112910.0,112900.0,0.02761]
[1758574897006,1.03412416,112910.0,112900.0,0.02761]
[1758574897964,1.02522015,112910.0,112900.0,0.02761]
[1758574899323,1.47402015,112910.0,112900.0,0.02761]
[1758574899516,1.47402015,112910.0,112900.0,0.02547]
[1758574899714,1.47402015,112910.0,112900.0,0.01159]
[1758574901648,1.47402015,112910.0,112900.0,0.00944]
[1758574901649,1.11541982,112910.0,112900.0,0.00944]
[1758574901878,1.56000943,112910.0,112900.0,1e-08]
[1758574902123,0.22714791,112900.0,112890.0,1e-08]
[1758574902345,0.77550396,112900.0,112890.0,1e-08]
[1758574902570,0.80518396,112900.0,112890.0,1e-08]
[1758574902778,0.81233622,112900.0,112890.0,1e-08]
[1758574903222,0.81280299,112900.0,112890.0,1e-08]
[1758574903453,0.84598929,112900.0,112890.0,1e-08]
[1758574904064,0.84798929,112900.0,112890.0,1e-08]
[1758574904684,0.85298929,112900.0,112890.0,1e-08]
[1758574904909,0.84798929,112900.0,112890.0,1e-08]
[1758574905309,0.85698929,112900.0,112890.0,1e-08]
[1758574906198,0.95274929,112900.0,112890.0,1e-08]
[1758574906501,1.29274929,112900.0,112890.0,1e-08]
[1758574908340,0.56716361,112890.0,112880.0,1e-08]
[1758574908543,1.39978083,112890.0,112880.0,1e-08]
[1758574908791,1.42652083,112890.0,112880.0,1e-08]
[1758574908975,1.45316019,112890.0,112880.0,1e-08]
[1758574909385,1.45416019,112890.0,112880.0,1e-08]
[1758574909863,0.1772107,112860.0,112850.0,1e-08]
[1758574909976,0.56657636,112860.0,112850.0,1e-08]
[1758574910181,1.02826566,112860.0,112850.0,1e-08]
[1758574910603,1.04893009,112860.0,112850.0,1e-08]
[1758574910806,0.76087046,112860.0,112850.0,1e-08]
[1758574911015,1.10807658,112860.0,112850.0,1e-08]
[1758574911437,1.39139658,112860.0,112850.0,1e-08]
[1758574911953,1.39139609,112860.0,112850.0,1e-08]
[1758574912306,1.39239609,112860.0,112850.0,1e-08]
[1758574912726,1.4013843,112860.0,112850.0,1e-08]
[1758574913545,1.1200643,112860.0,112850.0,1e-08]
[1758574913912,1.1200643,112860.0,112850.0,0.00215001]
[1758574913913,0.85442533,112860.0,112850.0,0.00215001]
[1758574914113,0.20755312,112860.0,112850.0,0.01817001]
[1758574914577,0.21650399,112860.0,112850.0,0.01817001]
[1758574915653,0.64851329,112860.0,112850.0,0.01817001]
[1758574916400,0.65050329,112860.0,112850.0,0.00215001]
[1758574916606,0.67525329,112860.0,112850.0,1e-08]
[1758574916810,0.67819329,112860.0,112850.0,0.00215001]
[1758574917018,1.18873263,112860.0,112850.0,1e-08]
[1758574917221,1.10346296,112860.0,112850.0,1e-08]
[1758574917804,1.40128442,112860.0,112850.0,1e-08]
[1758574919795,1.40128056,112860.0,112850.0,1e-08]
[1758574919961,1.47565241,112860.0,112850.0,1e-08]
[1758574920180,1.56092208,112860.0,112850.0,1e-08]
[1758574920403,1.53655023,112860.0,112850.0,1e-08]
[1758574921019,1.56092208,112860.0,112850.0,1e-08]
[1758574921231,1.56092208,112860.0,112840.0,1e-08]
[1758574921232,0.5672264,112850.0,112840.0,1e-08]
[1758574921383,0.5672264,112850.0,112830.0,1e-08]
[1758574921384,0.22724211,112840.0,112830.0,1e-08]
[1758574921589,1.50930948,112840.0,112830.0,1e-08]
[1758574922131,1.52536948,112840.0,112830.0,1e-08]
[1758574922907,1.66935915,112840.0,112830.0,1e-08]
[1758574923114,1.95063915,112840.0,112830.0,1e-08]
[1758574923314,1.66934731,112840.0,112830.0,1e-08]
[1758574923666,1.95062731,112840.0,112830.0,0.00700001]
[1758574923886,1.69371916,112840.0,112830.0,1e-08]
[1758574924086,1.66934731,112840.0,112830.0,1e-08]
[1758574924202,2.04642731,112840.0,112830.0,1e-08]
[1758574925055,1.96115764,112840.0,112830.0,1e-08]
[1758574926437,1.58407764,112840.0,112830.0,1e-08]
[1758574926878,1.96115764,112840.0,112830.0,1e-08]
[1758574927092,1.63407764,112840.0,112830.0,1e-08]
[1758574927284,1.91535764,112840.0,112830.0,1e-08]
[1758574927430,2.09642731,112840.0,112830.0,1e-08]
[1758574927639,2.04642731,112840.0,112830.0,1e-08]
[1758574927839,2.09642731,112840.0,112830.0,1e-08]
[1758574928092,1.71934731,112840.0,112830.0,1e-08]
[1758574928298,2.09642731,112840.0,112830.0,1e-08]
[1758574928457,1.71934731,112840.0,112830.0,1e-08]
[1758574928670,2.09642731,112840.0,112830.0,1e-08]
[1758574929444,1.71934731,112840.0,112830.0,1e-08]
[1758574929662,2.09650731,112840.0,112830.0,1e-08]
[1758574930669,1.71933239,112840.0,112830.0,1e-08]
[1758574931035,2.00061239,112840.0,112830.0,1e-08]
[1758574931233,2.09645239,112840.0,112830.0,1e-08]
[1758574931891,1.71933239,112840.0,112830.0,1e-08]
[1758574932093,2.09645239,112840.0,112830.0,1e-08]
[1758574932420,2.00061239,112840.0,112830.0,1e-08]
[1758574932815,2.09645239,112840.0,112830.0,1e-08]
[1758574933023,2.00061239,112840.0,112830.0,1e-08]
[1758574933262,2.09645239,112840.0,112830.0,1e-08]
[1758574933872,2.04645239,112840.0,112830.0,1e-08]
[1758574934080,2.09645239,112840.0,112830.0,1e-08]
[1758574934241,2.10471784,112840.0,112830.0,1e-08]
[1758574934635,2.10471784,112840.0,112810.0,0.0004]
[1758574934636,2.13795179,112840.0,112810.0,0.0004]
[1758574934842,0.17727353,112820.0,112810.0,0.00254]
[1758574935038,0.99855484,112820.0,112810.0,0.00254]
[1758574935229,0.99855484,112820.0,112810.0,0.0163]
[1758574935887,1.02567632,112820.0,112810.0,0.0163]
[1758574936098,1.02567632,112820.0,112810.0,0.0183]
[1758574936826,1.02777632,112820.0,112810.0,0.00442]
[1758574937285,1.05417632,112820.0,112810.0,0.00442]
[1758574937713,1.05419608,112820.0,112810.0,0.00442]
[1758574939118,1.05102608,112820.0,112810.0,0.00442]
[1758574939562,0.31240678,112820.0,112810.0,0.02044]
[1758574939759,0.74441608,112820.0,112810.0,0.02044]
[1758574939969,1.02569608,112820.0,112810.0,0.02044]
[1758574940175,1.02569608,112820.0,112810.0,0.0183]
[1758574940390,1.02569608,112820.0,112810.0,0.00442]
[1758574942848,0.59368678,112820.0,112810.0,0.00442]
[1758574943067,1.02570765,112820.0,112810.0,0.00442]
[1758574943287,1.05103765,112820.0,112810.0,0.00442]
[1758574943901,1.05420765,112820.0,112810.0,0.00442]
[1758574944574,1.27119597,112820.0,112810.0,0.00442]
[1758574945034,1.24269597,112820.0,112810.0,0.00442]
[1758574945261,1.24479597,112820.0,112810.0,0.00442]
[1758574946224,0.96141597,112820.0,112810.0,0.00442]
[1758574946444,0.91815716,112820.0,112810.0,0.02044]
[1758574947749,1.25815716,112820.0,112810.0,0.02044]
[1758574947986,0.97691716,112820.0,112810.0,0.02044]
[1758574948183,1.25815716,112820.0,112810.0,0.02044]
[1758574948825,0.93365835,112820.0,112810.0,0.02044]
[1758574949069,1.25815716,112820.0,112810.0,0.02044]
[1758574949808,1.58265597,112820.0,112810.0,0.00442]
[1758574951029,1.59096237,112820.0,112810.0,0.00442]
[1758574951450,1.59099929,112820.0,112810.0,0.00442]
[1758574951659,1.59613929,112820.0,112810.0,0.0024]
[1758574951903,0.51728924,112810.0,112800.0,4e-05]
[1758574952102,1.28563352,112810.0,112800.0,4e-05]
[1758574952299,1.28779352,112810.0,112800.0,4e-05]
[1758574952531,0.98686308,112810.0,112800.0,4e-05]
[1758574952733,1.31136189,112810.0,112800.0,4e-05]
[1758574956011,1.3380183,112810.0,112800.0,4e-05]
[1758574956516,1.3380183,112810.0,112800.0,0.00426]
[1758574956517,0.57511101,112810.0,112800.0,0.00426]
[1758574956724,0.51635101,112810.0,112800.0,0.34263881]
[1758574956879,0.51635101,112810.0,112800.0,0.01814]
[1758574957084,0.84084982,112810.0,112800.0,0.01814]
[1758574957294,0.83254342,112810.0,112800.0,0.01814]
[1758574959529,0.50804461,112810.0,112800.0,0.01814]
[1758574959753,0.83254342,112810.0,112800.0,0.01814]
[1758574960530,0.83254342,112810.0,112800.0,0.016]
[1758574961369,0.80588701,112810.0,112800.0,0.016]
[1758574962197,0.78926155,112810.0,112800.0,0.016]
[1758574963465,0.78926155,112810.0,112800.0,0.01814]
[1758574963885,0.46472274,112810.0,112800.0,0.34263881]
[1758574964506,0.46472274,112810.0,112800.0,0.32875881]
[1758574964507,0.0062335,112810.0,112800.0,0.32875881]
[1758574964723,0.18397323,112820.0,112800.0,0.92971225]
[1758574964944,0.18397323,112820.0,112810.0,0.35824773]
[1758574965159,0.0066997,112820.0,112810.0,0.51780805]
[1758574965365,0.17773973,112820.0,112810.0,0.19538924]
[1758574965596,0.17773973,112820.0,112810.0,0.51988805]
[1758574966421,0.17773973,112820.0,112810.0,0.58762235]
[1758574966629,0.17773973,112820.0,112810.0,0.59162235]
[1758574966823,0.17773973,112820.0,112810.0,0.87282235]
[1758574967879,0.17773973,112820.0,112810.0,0.69753311]
[1758574968087,0.17773973,112820.0,112810.0,0.41633311]
[1758574969128,0.17773973,112820.0,112810.0,0.59362235]
[1758574970057,0.17773973,112820.0,112810.0,0.69749311]
[1758574971506,0.17773973,112820.0,112810.0,0.0918343]
[1758574971707,0.17773973,112820.0,112810.0,0.43406203]
[1758574971916,0.17773973,112820.0,112810.0,0.41633311]
[1758574972076,0.0004662,112820.0,112810.0,0.96005202]
[1758574972285,0.17773973,112820.0,112810.0,0.96005202]
[1758574972490,0.17773973,112820.0,112810.0,0.67889202]
[1758574972852,0.17773973,112820.0,112810.0,0.96005202]
[1758574973183,0.17773973,112820.0,112810.0,0.45826397]
[1758574973382,0.17773973,112820.0,112810.0,0.78276278]
[1758574974583,0.17773973,112820.0,112810.0,0.96005202]
[1758574975749,0.17773973,112820.0,112810.0,0.67889202]
[1758574975940,0.17773973,112820.0,112810.0,0.96001202]
[1758574977027,0.0004662,112820.0,112810.0,0.96001202]
[1758574977189,0.0004662,112820.0,112810.0,1.28451083]
[1758574977533,0.0004662,112820.0,112810.0,0.96001202]
[1758574978064,0.0004662,112820.0,112810.0,1.28251083]
[1758574978539,0.0014662,112820.0,112810.0,1.28351083]
[1758574978777,0.0014662,112820.0,112810.0,1.29451083]
[1758574979323,0.0014662,112820.0,112810.0,1.63451083]
[1758574979730,0.0014662,112820.0,112810.0,1.35339083]
[1758574979938,0.0014662,112820.0,112810.0,1.63447083]
[1758574980127,0.0014662,112820.0,112810.0,1.73031083]
[1758574980929,0.0014662,112820.0,112810.0,2.05480964]
[1758574981149,0.0014662,112820.0,112810.0,1.73031083]
[1758574981358,0.0014662,112820.0,112810.0,2.08496154]
[1758574981837,0.07126631,112850.0,112840.0,0.82623973]
[1758574982058,0.07126631,112850.0,112840.0,1.28851228]
[1758574982266,0.07126631,112850.0,112840.0,1.30660228]
[1758574982531,0.00033043,112860.0,112850.0,0.1772264]
[1758574982733,0.00033043,112860.0,112850.0,0.60508488]
[1758574983246,0.17754113,112860.0,112850.0,0.60508488]
[1758574983577,0.00033043,112860.0,112850.0,0.60508488]
[1758574984019,0.17754113,112860.0,112850.0,0.60508488]
[1758574984225,0.17754113,112860.0,112850.0,0.670853]
[1758574984435,0.18654113,112860.0,112850.0,0.34635419]
[1758574984646,0.18654113,112860.0,112850.0,0.951893]
[1758574985078,0.18754113,112860.0,112850.0,0.951893]
[1758574985292,0.01033043,112860.0,112850.0,0.951893]
[1758574986760,0.00133043,112860.0,112850.0,0.951893]
[1758574986974,0.00133043,112860.0,112850.0,0.95181592]
[1758574987317,0.00033043,112860.0,112850.0,0.95181592]
[1758574987751,0.00033043,112860.0,112850.0,0.95381592]
[1758574988702,0.17754113,112860.0,112850.0,0.44998779]
[1758574988914,0.17754113,112860.0,112850.0,1.047513]
[1758574989128,0.17754113,112860.0,112850.0,0.72515419]
[1758574989318,0.17754113,112860.0,112850.0,1.049653]
[1758574989759,0.17754113,112860.0,112850.0,0.34835419]
[1758574989982,0.17754113,112860.0,112850.0,0.4796066]
[1758574990215,0.85588875,112860.0,112850.0,0.06776812]
[1758574990427,0.85588875,112860.0,112850.0,0.34876812]
[1758574990627,0.53758822,112860.0,112850.0,0.06776812]
[1758574990844,0.53758822,112860.0,112850.0,0.34876812]
[1758574991269,0.86208703,112860.0,112850.0,0.06776812]